Cogmind - Beta 16 @@@ ROGUE MODE // 2026.02.01 @ 15:59:34 Player: CloudSeaKing Result: Destroyed by H-88 Terminator with KE Penetrator Performance ------------- Evolutions (9) 4500 Regions Visited (19) 3800 Robots Destroyed (266) 1330 Value Destroyed (11279) 11279 Prototype IDs (33) 660 Alien Tech Used (0) 0 Bonus (5305) 5305 TOTAL SCORE: 26874 Bonus ------- High Alert Combat Kills 938 Follower Combat Kills 2237 Network Hubs Disabled 400 Registered with UFD 300 Built Enhanced Grunts 300 Met R17 at Cetus 500 Met R17 at Research 2000 Friendly Fire -1370 Cogmind --------- Core Integrity 0/1600 Matter 246/300 Energy 98/100 System Corruption 19% Temperature Cool (0) Movement Core (50) Location -1/Access Parts ------- > --- POWER (3) -------- (None) > --- PROPULSION (7) --- (None) > --- UTILITY (10) ----- (None) > --- WEAPON (5) ------- (None) > --- INVENTORY (5) ---- Light Antimatter Reactor Micro Antimatter Reactor Compact HERF Cannon Smartbomb Launcher Peak State ------------ > --- POWER ------------ Reinforced Fission Core Micro Antimatter Reactor Micro Antimatter Reactor > --- PROPULSION ------- Armored Medium Treads Armored Medium Treads Armored Medium Treads Biometal Medium Treads Biometal Medium Treads Improved Heavy Siege Treads > --- UTILITY ---------- Advanced Heat Sink Advanced Cooling System High-capacity Storage Unit Advanced Visual Processing Unit Advanced Targeting Computer Advanced Target Analyzer Advanced Phase Shifter Improved Weapon Shielding Layered Heavy Armor Plating > --- WEAPON ----------- Gamma Rifle Enhanced Quantum Rifle Cooled Phase Cannon Enhanced Nova Cannon Companion Sword > --- INVENTORY -------- Light Antimatter Reactor Light Antimatter Reactor Light Antimatter Reactor Micro Antimatter Reactor Matter Compressor Advanced Thermal Shield Advanced Hardlight Generator Advanced Hacking Suite Advanced System Shield Long-range Proton Cannon Compact HERF Cannon Compact HERF Cannon Compact Mass Driver Smartbomb Launcher Force Lance [Rating: 172] Favorites ----------- Power Deuterium Engine Engine Deuterium Engine Power Core Reinforced Fission Core Reactor Micro Antimatter Reactor Propulsion Armored Treads Treads Armored Treads Leg Flexi-carbon Leg Wheel Wheel Hover Unit Antigrav Array Flight Unit Improved Cesium-ion Thruster Utility Huge Storage Unit Device Improved Sensor Array Storage Huge Storage Unit Processor Advanced Targeting Computer Hackware Improved Hacking Suite Protection Hardened Light Armor Plating Weapon Mini Assault Cannon Energy Gun Gamma Rifle Energy Cannon Cooled Phase Cannon Ballistic Gun Enhanced Autogun Ballistic Cannon Mini Assault Cannon Launcher Neutron Missile Launcher Slashing Weapon Companion Sword Piercing Weapon Force Lance Build | -11 -10 -10 -10 -9 -8 -8 -8 -8 -6 -6 -6 -6 -6 -5 -4 -3 -3 -2 -1 ------- Run | Yrd Mat Min Exi Min Mat Sto Rec Scr Fac Ext Cet Arc Hub Fac Fac Res Tes Res Acc Slots Evolved 18 | . . . . . 4 . . . 4 . . . . 2 2 2 . 2 2 Power 2 | . . . . . . . . . . . . . . . 1 . . 1 . Propulsion 5 | . . . . . 2 . . . 1 . . . . 1 . . . 1 . Utility 8 | . . . . . 2 . . . 2 . . . . 1 1 1 . . 1 Weapon 3 | . . . . . . . . . 1 . . . . . . 1 . . 1 Parts Attached 199 | 8 4 3 . 2 15 20 2 5 13 17 11 11 4 19 2 23 11 25 4 Power 22 | 1 . 1 . . 1 3 . . 1 2 . . 1 1 1 4 1 5 . Engine 11 | 1 . 1 . . 1 3 . . 1 2 . . . 1 1 . . . . Core 2 | . . . . . . . . . . . . . . . . 1 1 . . Reactor 9 | . . . . . . . . . . . . . 1 . . 3 . 5 . Propulsion 67 | 2 . 1 . 1 6 12 . 1 3 10 4 2 . 5 1 10 2 7 . Treads 57 | 2 . 1 . 1 5 12 . 1 3 8 4 2 . 2 1 6 2 7 . Leg 2 | . . . . . . . . . . 1 . . . 1 . . . . . Wheel 4 | . . . . . 1 . . . . . . . . 2 . 1 . . . Hover 3 | . . . . . . . . . . . . . . . . 3 . . . Flight 1 | . . . . . . . . . . 1 . . . . . . . . . Utility 64 | 2 1 1 . 1 3 3 2 2 8 2 1 7 2 6 . 7 7 6 3 Device 24 | 1 . . . . 1 . . 1 3 1 . 3 . 1 . 6 5 2 . Storage 7 | 1 1 . . 1 1 . . . . . . . . 1 . . . 1 1 Processor 8 | . . 1 . . . . 1 1 1 . . . . 1 . . 2 1 . Hackware 3 | . . . . . . . . . . . 1 1 . . . . . . 1 Protection 22 | . . . . . 1 3 1 . 4 1 . 3 2 3 . 1 . 2 1 Artifact . | . . . . . . . . . . . . . . . . . . . . Weapon 46 | 3 3 . . . 5 2 . 2 1 3 6 2 1 7 . 2 1 7 1 Energy Gun 6 | 2 1 . . . 1 . . . . . . . . . . . . 2 . Energy Cannon 6 | . . . . . 1 1 . . . . 1 . . . . . 1 1 1 Ballistic Gun 16 | 1 2 . . . 2 . . 1 . 3 2 2 1 1 . 1 . . . Ballistic Cannon 10 | . . . . . . 1 . . 1 . 1 . . 4 . . . 3 . Launcher 6 | . . . . . 1 . . . . . 2 . . 2 . 1 . . . Special Weapon . | . . . . . . . . . . . . . . . . . . . . Impact Weapon . | . . . . . . . . . . . . . . . . . . . . Slashing Weapon 1 | . . . . . . . . 1 . . . . . . . . . . . Piercing Weapon 1 | . . . . . . . . . . . . . . . . . . 1 . Special Melee Weapon . | . . . . . . . . . . . . . . . . . . . . Unidentified Prototypes 12 | . . . . . 2 1 . 2 . 1 2 . . 1 . 1 1 1 . Corrupted Parts 7 | . . . . . . . . . . . 3 2 1 . . 1 . . . System Corruption 47 | . . . . . . . . . . . 14 13 10 . . 10 . . . Parts Lost 91 | . . 3 . 1 3 1 . . 7 9 4 . 1 16 1 12 5 9 19 Power 13 | . . 1 . . 1 1 . . . 2 . . . 2 . 2 1 1 2 Propulsion 30 | . . 1 . 1 1 . . . 3 5 2 . 1 5 1 1 1 3 5 Utility 28 | . . 1 . . . . . . 4 2 . . . 5 . 4 1 4 7 Weapon 20 | . . . . . 1 . . . . . 2 . . 4 . 5 2 1 5 Highest Loss Streak 19 | . . 2 . 1 2 1 . . 3 4 3 . 1 6 1 6 2 3 19 To Critical Strikes 4 | . . . . . . . . . . . 2 . . 1 . . 1 . . Average Backups 21 | 3 8 9 10 12 21 24 25 24 23 24 23 23 23 21 17 20 20 18 14 Power 1 | . 1 1 2 2 3 2 2 1 1 . . 1 2 1 1 2 3 2 4 Propulsion 1 | 2 3 2 1 1 2 2 3 3 1 2 1 2 1 1 . 1 2 . . Utility 8 | . 2 1 1 1 6 10 11 11 12 11 9 9 9 8 5 7 7 7 3 Weapon 8 | . 1 4 6 6 10 10 9 7 6 8 11 11 11 10 10 9 6 7 6 Tool/Special . | . . . . . . . . . . . . . . . . . . . . Unused Backups 67 | . 3 1 . . 11 6 1 6 1 9 2 1 1 1 . 8 1 11 4 Power 10 | . . . . . 2 . . 1 . . . . . . . 2 . 2 3 Propulsion 9 | . 3 1 . . 1 2 . . . . . . . . . 2 . . . Utility 25 | . . . . . 4 1 1 3 . 5 1 . . . . 3 1 6 . Weapon 21 | . . . . . 4 3 . 2 1 2 1 1 1 1 . 1 . 3 1 Tool/Special 2 | . . . . . . . . . . 2 . . . . . . . . . Average Slot Usage (%) 94 | . 100 100 100 99 97 99 100 99 98 98 95 90 92 80 72 81 84 92 70 Engine 6 | . 14 14 14 14 9 9 9 9 6 5 6 6 3 2 5 1 . . . Reactor 1 | . . . . . . . . . . . . . 2 2 . 3 7 10 6 Treads 28 | . 28 28 28 27 33 35 36 35 32 31 28 26 25 15 4 9 15 25 18 Device 8 | . 14 8 . . 6 9 9 8 4 8 8 5 2 3 . 15 19 20 6 Storage 7 | . 14 14 14 14 11 9 9 9 6 6 6 6 6 5 9 4 4 4 3 Processor 10 | . . 5 14 14 9 9 9 9 12 13 13 11 6 10 10 9 17 10 9 Protection 7 | . . . . . 7 9 9 8 13 10 6 8 16 9 10 3 . 1 5 Energy Cannon 1 | . . . . . 7 1 . . . . 3 . . . . . 6 7 8 Ballistic Gun 8 | . 15 28 28 28 10 9 9 6 3 3 7 13 14 9 . 8 3 1 . Ballistic Cannon 5 | . . . . . . 7 9 9 8 12 5 3 4 3 10 1 4 3 . Slashing Weapon 1 | . . . . . . . . 2 6 2 . 2 . 2 5 4 1 . 3 Peak Build Rating 172 | 7 8 8 8 8 25 38 41 44 61 69 87 85 89 108 80 146 147 167 172 Average Rating 64 | 5 7 7 8 7 18 31 38 41 58 61 79 80 85 92 79 117 141 155 131 On Entrance 57 | . 7 8 8 8 8 25 38 41 44 60 68 72 83 89 73 80 131 140 163 Avg Prop Armor Cover (%) 4 | . . . . . 2 . . . . 3 . . . 4 6 4 10 . . Naked Turns 148 | . . . . . . . . . . . . . . . . . . . 148 Heaviest Build 216 | 13 20 20 19 89 99 102 105 106 115 112 122 123 128 145 141 158 162 216 148 Greatest Support 239 | 40 40 40 40 40 82 82 82 82 100 116 163 153 156 213 10 225 225 239 226 Greatest Overweight (x) 35 | . . . . 2 1 1 1 1 1 35 . . . 13 14 14 . 1 1 Average Overweight (x) . | . . . . 1 1 1 1 1 1 . . . . 1 14 1 . . . Largest Inventory Capacity 25 | 8 10 10 10 25 25 25 25 25 25 25 25 25 25 25 25 25 25 25 20 Average Capacity 23 | 7 9 10 10 21 25 25 25 25 25 25 25 25 25 25 25 25 25 21 16 Most Carried 25 | 6 10 10 10 13 25 25 25 25 25 25 25 25 25 25 22 25 25 25 19 Average Carried 22 | 3 8 9 10 12 21 24 24 24 23 24 24 24 24 21 20 24 23 20 15 Final Capacity 25 | 8 10 10 10 25 25 25 25 25 25 25 25 25 25 25 25 25 25 20 5 Final Carried 25 | 6 10 10 10 13 25 25 25 25 25 25 25 25 25 21 22 25 24 18 5 Class Distribution -------------------- 26% | Mutant 25% | Commander-Mutant 22% | Scavenger-Tank 14% | Scavenger-Mutant 3% | Gunner Dominant Class ---------------- Mutant | -10/Materials Mutant | -10/Mines Mutant | -10/Exiles Mutant | -9/Mines Scavenger-Mutant | -8/Materials Mutant | -8/Storage Commander-Mutant | -8/Recycling Commander-Mutant | -8/Scraptown Mutant | -6/Factory Gunner | -6/Extension Scavenger-Tank | -6/Cetus Scavenger-Tank | -6/Archives Scavenger-Tank | -6/Hub_04(d) Scavenger-Mutant | -5/Factory Scavenger-Mutant | -4/Factory Scavenger-Tank | -3/Research Scavenger-Gunner | -3/Testing Scavenger-Tank | -2/Research Scavenger-Tank | -1/Access Resources | -11 -10 -10 -10 -9 -8 -8 -8 -8 -6 -6 -6 -6 -6 -5 -4 -3 -3 -2 -1 ----------- Run | Yrd Mat Min Exi Min Mat Sto Rec Scr Fac Ext Cet Arc Hub Fac Fac Res Tes Res Acc Matter Collected 8978 | 253 202 162 . 49 562 886 30 91 698 1150 343 387 483 899 77 864 621 1080 141 Remotely . | . . . . . . . . . . . . . . . . . . . . Salvage Created 10663 | 44 125 125 . 32 1243 1337 94 . 777 1005 192 259 242 1416 77 400 802 2068 425 Parts 595 | 7 9 7 . 3 79 87 7 . 40 38 6 24 12 77 4 16 48 111 20 Haulers Intercepted 14 | . 1 . . . 5 6 . . . 1 . . . 1 . . . . . Recyclers Shooed 6 | . . . . . 1 . . . . . . . . 4 . . . 1 . Parts Field Recycled . | . . . . . . . . . . . . . . . . . . . . Retrieved Matter . | . . . . . . . . . . . . . . . . . . . . Parts Self-Destructed . | . . . . . . . . . . . . . . . . . . . . Prevented . | . . . . . . . . . . . . . . . . . . . . Parts Restored . | . . . . . . . . . . . . . . . . . . . . Kills | -11 -10 -10 -10 -9 -8 -8 -8 -8 -6 -6 -6 -6 -6 -5 -4 -3 -3 -2 -1 ------- Run | Yrd Mat Min Exi Min Mat Sto Rec Scr Fac Ext Cet Arc Hub Fac Fac Res Tes Res Acc Combat Hostiles Destroyed 192 | . 4 6 . 1 20 23 2 . 17 18 4 . 4 31 1 12 12 34 3 Melee 9 | . . . . . . . . . 2 1 . . . 3 1 2 . . . Guns 58 | . 4 6 . 1 7 8 . . . 5 1 . 4 10 . 1 4 7 . Cannons 91 | . . . . . 8 15 2 . 11 12 3 . . 5 . 2 6 24 3 AOE 29 | . . . . . 5 . . . 4 . . . . 13 . 7 . . . Classes Destroyed 22 | 1 3 . . . 6 1 . . 2 1 . . . 4 . 3 1 . . Worker 9 | . . . . . 2 1 . . . . . . 1 2 . . 2 1 . Builder 13 | . . . . . . . . . 2 . . . . 4 . . 2 4 1 Tunneler 6 | 2 . . . . 1 . . . 1 . . . . 2 . . . . . Hauler 14 | . 1 . . . 5 6 . . . 1 . . . 1 . . . . . Recycler 10 | . . . . . 2 2 . . 1 2 . . . 1 . . . . 2 Mechanic 1 | . . . . . . . . . . . . . . . . . 1 . . Operator 14 | . . . . . 2 2 . . 1 . . 9 . . . . . . . Watcher 5 | . . . . . 1 1 . . . . 1 . . . . . . 2 . Swarmer 54 | . 3 5 . . 8 3 . . 4 3 . . . 5 . 5 3 14 1 Cutter 2 | . . . . . . . . . . . . . . 2 . . . . . Saboteur 1 | . . . . . . . . . . . . . . 1 . . . . . Grunt 46 | . 1 1 . 1 5 7 . . 6 10 2 . 1 5 . 3 2 2 . Duelist 4 | . . . . . . 1 . . . 2 . . . . . 1 . . . Protector 1 | . . . . . . . . . . . . . . 1 . . . . . Sentry 30 | . . . . . 6 12 2 . 3 1 . . . 2 1 1 . 2 . Demolisher 1 | . . . . . . . . . . . . . . . . 1 . . . Specialist 2 | . . . . . . . . . . . . . . 2 . . . . . Hunter 19 | . . . . . 1 . . . 2 2 . . . 6 . . 2 6 . Programmer 27 | . . . . . . . . . 2 . . . 1 7 . . 5 10 2 Cetus Guard 2 | . . . . . . . . . . . 2 . . . . . . . . Lightning 2 | . . . . . . . . . . . . . 2 . . . . . . Striker 1 | . . . . . . . . . . . . . . . . 1 . . . Savage 1 | . . . . . . . . . . 1 . . . . . . . . . Revision 1 | . . . . . . . . . . . . . . . . 1 . . . Best Kill Streak 12 | 2 2 3 . 1 7 5 2 . 6 4 2 3 2 12 1 10 8 8 4 Combat Bots Only 10 | . 2 3 . 1 5 5 2 . 6 4 2 . 1 9 1 10 4 8 2 Max Kills in Single Turn 5 | 1 1 1 . 1 4 1 1 . 2 2 1 1 2 5 1 3 2 3 2 Gunslinging . | . . . . . . . . . . . . . . . . . . . . Exploded 3 | . . . . . 2 . . . 2 . . . . 3 . 3 . . . Melee 1 | . . . . . . . . . 1 1 . . . 1 1 1 . . . Uniques/NPCs Destroyed . | . . . . . . . . . . . . . . . . . . . . Combat | -11 -10 -10 -10 -9 -8 -8 -8 -8 -6 -6 -6 -6 -6 -5 -4 -3 -3 -2 -1 -------- Run | Yrd Mat Min Exi Min Mat Sto Rec Scr Fac Ext Cet Arc Hub Fac Fac Res Tes Res Acc Hostile Shots Fired 1778 | . 31 48 . 2 123 82 4 . 260 227 32 2 32 256 12 72 125 290 180 Missed 549 | . 5 11 . . 38 19 1 . 77 73 12 2 13 79 4 18 37 111 49 Hits 1229 | . 26 37 . 2 85 63 3 . 183 154 20 . 19 177 8 54 88 179 131 Melee 11 | . . . . . . . . . . . . . . 6 . 5 . . . Projectile 1218 | . 26 37 . 2 85 63 3 . 183 154 20 . 19 171 8 49 88 179 131 AOE 15 | . . . . . . . . . . . . . . 1 . 13 1 . . Critical Strikes 58 | . 1 2 . . 1 3 . . 4 3 6 . 4 7 . . 7 10 10 Part Disruptions 3 | . . . . . . . . . . . . . . . . . 1 . 2 Damage Taken 23922 | . 234 391 . 22 1096 900 43 . 2190 1923 414 25 737 4786 195 2143 1785 3728 3310 Core 3179 | . 44 83 . . 89 128 . . 202 90 14 . 20 254 30 228 192 194 1611 Absorbed by Shields 459 | . . . . . . . . . . 104 145 . . . . 84 126 . . Reduced by Siege Mode 56 | . . . . . . . . . . . . . . . . 32 . 24 . Redirected to Shielding 102 | . . . . . . . . . . . . . . . . . . . 102 Ignored by Resistances 632 | . . . . . . . . . . . . . . . . 99 133 400 . Regen/Repaired (Parts) 537 | . . . . . 121 . . . 165 . . . . 101 . . . 150 . Core Remaining (%) 74 | 100 . . . 49 . . . 60 . . . . 61 74 97 . 67 86 . Volleys Fired 557 | 6 16 20 . 3 63 69 3 . 38 59 18 12 29 61 . 15 41 77 27 Largest 4 | 2 2 2 . 2 2 2 2 . 2 3 3 3 3 3 . 3 4 4 4 Hottest 338 | 60 60 40 . 40 90 85 65 . 80 108 169 109 114 142 . 165 203 300 338 Shots Fired 1407 | 12 32 40 2 6 126 138 7 . 77 161 56 34 77 150 . 38 130 266 55 Gun 615 | 12 32 40 2 6 61 69 3 . 8 45 16 23 50 90 . 23 36 94 5 Cannon 762 | . . . . . 62 69 4 . 67 116 34 11 27 51 . 7 92 172 50 Launcher 30 | . . . . . 3 . . . 2 . 6 . . 9 . 8 2 . . Special . | . . . . . . . . . . . . . . . . . . . . Kinetic 992 | 6 16 40 2 6 61 134 7 . 75 161 38 34 77 141 . 27 79 88 . Thermal 344 | 6 16 . . . 62 4 . . . . 12 . . . . 3 49 137 55 Explosive 28 | . . . . . 3 . . . 2 . 6 . . 7 . 8 2 . . Electromagnetic 43 | . . . . . . . . . . . . . . 2 . . . 41 . Robot Hit Streak 24 | 3 7 4 . 9 20 24 5 . 20 21 19 9 9 13 . 8 11 10 9 Robot Miss Streak 9 | 3 1 4 . . 3 2 1 . 2 3 4 5 3 4 . 5 5 5 9 Penetration Max 1 | . . . . . . . . . . 1 . . 1 1 . . 1 1 . Secondary Targets 2 | . . 1 . . . . . . . . . . . 1 . . . . . Max Gunslinging Chain 1 | . . 1 . . . . . . . . . . . 1 . . . . . Shots Hit Robots 915 | 6 21 19 . 5 88 100 5 . 65 116 29 32 39 120 4 40 66 131 29 Core Hits 482 | 3 8 10 . 2 46 47 2 . 33 47 25 13 21 81 2 30 32 72 8 Critical Kills 16 | . . . . . . . . . . . . . 2 5 . . 6 3 . Critical Parts Destroyed 18 | . . . . . . 1 . . . . . 1 2 10 . 1 2 1 . Critical Strikes 63 | . . . . . . 4 . . 5 6 1 2 4 17 . 4 12 8 . Meltdown 6 | . . . . . . . . . . . . . . . . . 3 3 . Destroy 30 | . . . . . . 1 . . 1 . . 1 4 15 . 2 5 1 . Blast 22 | . . . . . . 3 . . 4 6 1 1 . . . . 4 3 . Corrupt 1 | . . . . . . . . . . . . . . . . . . 1 . Melee Attacks 100 | . . . . . . . . . 23 11 . 9 . 23 6 22 1 . 5 Impact . | . . . . . . . . . . . . . . . . . . . . Slashing 100 | . . . . . . . . . 23 11 . 9 . 23 6 22 1 . 5 Piercing . | . . . . . . . . . . . . . . . . . . . . Sneak Attacks 14 | . . . . . . . . . 4 1 . 8 . 1 . . . . . Combat Hostiles . | . . . . . . . . . . . . . . . . . . . . Follow-up Attacks . | . . . . . . . . . . . . . . . . . . . . Damage Inflicted 33761 | 78 210 296 . 63 2149 2304 141 . 2173 3376 1220 1541 1316 6783 154 2815 2483 5189 1470 Guns 9485 | 78 196 261 . 63 605 985 33 . 107 851 189 387 804 2282 . 245 595 1611 193 Cannons 14656 | . . . . . 1132 1267 97 . 1390 2241 563 296 205 919 . 206 1676 3544 1120 Explosions 6095 | . . . . . 361 . . . 238 . 468 . 279 2897 . 1640 212 . . Melee 3287 | . . . . . . . . . 438 284 . 851 . 685 154 724 . . 151 Ramming 238 | . 14 35 . . 51 52 11 . . . . 7 28 . . . . 34 6 Kinetic 16518 | 24 92 261 . 63 605 2183 130 . 1497 3092 556 683 1009 3201 . 357 1023 1742 . Thermal 7739 | 54 104 . . . 1132 69 . . . . 196 . . 417 . 405 1248 2801 1313 Explosive 4944 | . . . . . 361 . . . 238 . 468 . . 2336 . 1329 212 . . Electromagnetic 1035 | . . . . . . . . . . . . . 279 144 . . . 612 . Impact . | . . . . . . . . . . . . . . . . . . . . Slashing 3287 | . . . . . . . . . 438 284 . 851 . 685 154 724 . . 151 Piercing . | . . . . . . . . . . . . . . . . . . . . Highest Corruption 31 | . 6 6 6 6 . 1 1 . 3 4 18 31 27 10 . 10 25 20 19 Average Corruption 8 | . 5 6 6 6 . 1 1 . 2 3 16 22 18 6 . 10 16 12 11 Corruption Purged 20 | . . . . . . . . . . . . 20 . . . . . . . Corruption Blocked . | . . . . . . . . . . . . . . . . . . . . Effects 359 | . . 21 16 14 . 3 5 . 21 35 16 30 40 34 . 19 34 59 12 Message Errors 79 | . . 4 7 2 . 1 1 . 7 11 5 6 10 7 . 5 5 7 1 Matter Fused 78 | . . 1 1 3 . 1 . . 4 8 3 9 11 11 . 1 8 14 3 Heat Flow Errors 43 | . . 1 3 1 . . . . 2 4 1 7 4 2 . 6 5 6 1 Energy Discharges 37 | . . 5 2 3 . . . . 2 5 3 1 3 1 . 1 3 7 1 Parts Rejected 8 | . . . . . . . . . . . 1 . 1 2 . . 2 1 1 Parts Fused 3 | . . . 1 . . . . . . 1 . . . . . 1 . . . Data Loss (minor) 34 | . . 4 . 3 . . 1 . 4 2 1 3 2 7 . 2 3 1 1 Data Loss (major) 17 | . . 2 . 1 . . 2 . . 2 . 2 2 . . . . 6 . Misfires 26 | . . 1 2 . . 1 1 . 1 2 2 2 4 . . 3 1 6 . Alerts 9 | . . 2 . 1 . . . . 1 . . . 2 . . . . 2 1 Misdirections 6 | . . . . . . . . . . . . . 1 . . . 1 1 3 Weapon Failures 19 | . . 1 . . . . . . . . . . . 4 . . 6 8 . Overload Shots 1 | . . . . . . . . . . . . . . . . . 1 . . Overflow Damage 1070 | . . . . . 16 45 . . 96 38 10 283 . 133 . 52 33 146 218 Projectiles 534 | . . . . . 16 45 . . . 27 . 6 . . . 48 28 146 218 Explosions 120 | . . . . . . . . . . . 10 . . 101 . 4 5 . . Melee 416 | . . . . . . . . . 96 11 . 277 . 32 . . . . . Knockbacks 71 | . . 1 . . 1 7 . . 13 17 1 6 4 9 . 1 4 7 . Impact 3 | . . 1 . . 1 . . . . . . 1 . . . . . . . Kinetic 64 | . . . . . . 6 . . 11 17 1 5 4 8 . 1 4 7 . Secondary 4 | . . . . . . 1 . . 2 . . . . 1 . . . . . Self-Inflicted Damage 724 | . . . . . 42 . . . . . . . 196 267 . 112 104 . 3 Shots 11 | . . . . . 2 . . . . . . . 2 3 . 2 2 . . Rammed 27 | . 2 6 . . 5 5 1 . . . . 1 1 . . . . 4 2 Targets Rammed 29 | . 2 6 . . 6 6 1 . . . . 1 1 . . . . 4 2 Kicked . | . . . . . . . . . . . . . . . . . . . . Crushed 2 | . . . . . 1 1 . . . . . . . . . . . . . Highest Temperature 630 | 40 108 283 171 124 181 142 61 . 250 275 347 325 461 350 . 225 463 329 630 Average Temperature 96 | 26 52 126 68 56 41 39 26 . 72 78 157 92 147 129 . 77 173 95 226 Received Heat Transfer 3027 | . 48 141 . 12 324 414 9 . 600 537 13 . 63 582 45 117 77 45 . Effects 27 | . . . . . . . . . . . 2 1 2 2 . . 8 1 11 Shutdowns 11 | . . . . . . . . . . . 1 . 1 1 . . 4 . 4 Energy Bleed 5 | . . . . . . . . . . . 1 1 . 1 . . 1 1 . Interference 5 | . . . . . . . . . . . . . . . . . 3 . 2 Matter Decay 3 | . . . . . . . . . . . . . 1 . . . . . 2 Damage (major) 1 | . . . . . . . . . . . . . . . . . . . 1 Damage (core) 2 | . . . . . . . . . . . . . . . . . . . 2 Siege Activations 2 | . . . . . . . . . . . . . . . . 1 . 1 . Total Turns 29 | . . . . . . . . . . . . . . . . 10 . 19 . Longest Duration 19 | . . . . . . . . . . . . . . . . 10 . 19 . Martial Activations . | . . . . . . . . . . . . . . . . . . . . Shielding Activations . | . . . . . . . . . . . . . . . . . . . . Robots Disrupted . | . . . . . . . . . . . . . . . . . . . . Combat Hostiles . | . . . . . . . . . . . . . . . . . . . . Robots Corrupted . | . . . . . . . . . . . . . . . . . . . . Combat Hostiles . | . . . . . . . . . . . . . . . . . . . . Parts Fried 3 | . . . . . . . . . . . . . . . . . . 3 . Impact Corruptions . | . . . . . . . . . . . . . . . . . . . . Robots Melted 6 | . . . . . . . . . . . . . . . . . 3 3 . Combat Hostiles 5 | . . . . . . . . . . . . . . . . . 2 3 . Parts Melted 27 | . . 1 . . 1 . . . . . . . . . . . 14 8 3 Heat Transferred 8634 | 125 250 . . . 1776 111 . . . . 300 . . 350 . 300 1583 2766 1073 Parts Sabotaged . | . . . . . . . . . . . . . . . . . . . . Parts Stolen . | . . . . . . . . . . . . . . . . . . . . Parts Stripped . | . . . . . . . . . . . . . . . . . . . . Power Chain Reactions 4 | . . . . . . . . . . . . . . 3 . 1 . . . Alert | -11 -10 -10 -10 -9 -8 -8 -8 -8 -6 -6 -6 -6 -6 -5 -4 -3 -3 -2 -1 ------- Run | Yrd Mat Min Exi Min Mat Sto Rec Scr Fac Ext Cet Arc Hub Fac Fac Res Tes Res Acc Maximum Alert Level 3 | . . . . . 1 1 . . 2 2 2 1 2 3 1 1 1 3 2 Low Security (%) 59 | 100 100 100 . 100 82 64 100 . 58 63 . 35 19 37 . 88 64 32 . Level 1 26 | . . . . . 17 35 . . 26 25 74 64 6 16 100 11 35 31 73 Level 2 10 | . . . . . . . . . 14 11 25 . 74 4 . . . 30 26 Level 3 3 | . . . . . . . . . . . . . . 42 . . . 5 . Level 4 . | . . . . . . . . . . . . . . . . . . . . Level 5 . | . . . . . . . . . . . . . . . . . . . . High Security . | . . . . . . . . . . . . . . . . . . . . Max Security . | . . . . . . . . . . . . . . . . . . . . Peak Influence 806 | 5 70 60 . 31 231 352 130 . 450 543 486 347 563 806 375 232 246 805 477 Initial 477 | . . 1 . . . 79 130 . . 161 296 178 53 228 375 165 112 96 477 Average 190 | . 19 10 . . 108 139 29 . 158 179 371 232 399 451 350 48 181 300 349 Influence Increases 9411 | 10 106 205 . 51 635 846 82 . 680 1572 436 302 892 1241 30 354 412 1298 259 Destroy 0b10 Robot/C 4860 | . 80 160 . 40 400 460 40 . 340 980 220 80 220 600 20 240 240 680 60 Destroy 0b10 Robot/NC 385 | 10 5 . . . 65 65 . . 25 25 10 45 5 55 . . 25 35 15 Destroy Leader 958 | . 12 30 . 10 112 176 . . 90 112 10 . 50 112 10 40 40 144 10 Allied During Kill 874 | . . 15 . 1 . 42 28 . . 368 118 125 177 . . . . . . Successful Hack 211 | . 9 . . . 20 27 13 . 25 21 12 . 12 8 . . . 64 . Disable Machine 630 | . . . . . 15 45 . . 15 . 30 45 165 210 . . 45 60 . Destroy Structure 1028 | . . . . . 23 16 1 . 35 21 36 7 233 226 . 74 62 225 69 Partial Spotted 15 | . . . . . . 15 . . . . . . . . . . . . . Lose Combat Pursuer 450 | . . . . . . . . . 150 45 . . 30 30 . . . 90 105 Influence Decreases 9167 | 10 102 196 13 51 446 699 418 . 349 1374 519 594 579 941 482 469 440 674 811 Entered New Map 2368 | . . 3 13 . . 110 206 . . 170 233 268 101 239 392 150 88 76 319 Time Decay 5291 | 10 102 147 . 21 416 579 212 . 289 634 246 326 368 542 80 207 302 508 302 Lost Part 882 | . . 20 . 10 30 10 . . 60 90 40 . 10 160 10 112 50 90 190 Lost Ally 626 | . . 26 . 20 . . . . . 480 . . 100 . . . . . . Squads Dispatched 45 | . 2 . . . 2 2 . . 6 7 1 . 3 7 . 3 3 6 3 Investigation 12 | . 2 . . . . 1 . . . 6 1 . 1 . . . . . 1 Extermination 14 | . . . . . . . . . 3 . . . 1 3 . . 2 3 2 Reinforcement 16 | . . . . . 2 1 . . 3 1 . . 1 4 . 3 1 . . Assault . | . . . . . . . . . . . . . . . . . . . . Garrison 3 | . . . . . . . . . . . . . . . . . . 3 . Intercept . | . . . . . . . . . . . . . . . . . . . . Searches Triggered . | . . . . . . . . . . . . . . . . . . . . Construction Impeded 2 | . . . . . . . . . 1 . . . . 1 . . . . . Haulers Reinforced 1 | . . . . . . . . . 1 . . . . . . . . . . Active Scanning Responses . | . . . . . . . . . . . . . . . . . . . . Cargo Convoy Interrupts 1 | . . . . . . . . . . . . . . 1 . . . . . Stealth | -11 -10 -10 -10 -9 -8 -8 -8 -8 -6 -6 -6 -6 -6 -5 -4 -3 -3 -2 -1 --------- Run | Yrd Mat Min Exi Min Mat Sto Rec Scr Fac Ext Cet Arc Hub Fac Fac Res Tes Res Acc Distress Signals 24 | . . 1 . . 1 . . . 1 2 2 . 2 3 1 7 . 3 1 Communications Jammed 13 | . . . . . . . . . . . . . . . . . 4 9 . Distress Signals 13 | . . . . . . . . . . . . . . . . . 4 9 . Times Spotted 374 | . 5 8 . 2 37 32 2 . 25 53 12 23 16 52 3 18 19 49 18 Peak Tracking Total 11 | . 5 3 . 2 5 3 2 . 7 6 5 2 6 11 2 7 4 6 9 Tactical Retreats 15 | . . . . . . . . . 3 3 . . 1 2 . . . 3 3 Traps | -11 -10 -10 -10 -9 -8 -8 -8 -8 -6 -6 -6 -6 -6 -5 -4 -3 -3 -2 -1 ------- Run | Yrd Mat Min Exi Min Mat Sto Rec Scr Fac Ext Cet Arc Hub Fac Fac Res Tes Res Acc Traps Triggered 26 | . 4 . . . . 3 . . 3 1 . . . . . 7 . 5 3 Indirectly . | . . . . . . . . . . . . . . . . . . . . Trap Hack Attempts . | . . . . . . . . . . . . . . . . . . . . Triggered . | . . . . . . . . . . . . . . . . . . . . Disarmed . | . . . . . . . . . . . . . . . . . . . . Reprogrammed . | . . . . . . . . . . . . . . . . . . . . Reused . | . . . . . . . . . . . . . . . . . . . . Traps Extracted . | . . . . . . . . . . . . . . . . . . . . Installed . | . . . . . . . . . . . . . . . . . . . . Triggered . | . . . . . . . . . . . . . . . . . . . . Machines | -11 -10 -10 -10 -9 -8 -8 -8 -8 -6 -6 -6 -6 -6 -5 -4 -3 -3 -2 -1 ---------- Run | Yrd Mat Min Exi Min Mat Sto Rec Scr Fac Ext Cet Arc Hub Fac Fac Res Tes Res Acc Machines Disabled 43 | . . . . . 1 3 . . 1 1 2 3 11 14 . . 3 4 . Max in Single Turn 5 | . . . . . 1 1 . . 1 . 1 1 4 5 . . 2 1 . Garrison Access 2 | . . . . . 1 . . . 1 . . . . . . . . . . Network Hub 2 | . . . . . . . . . . . . . 2 . . . . . . Machines Repaired . | . . . . . . . . . . . . . . . . . . . . Machines Dismantled . | . . . . . . . . . . . . . . . . . . . . Machines Sabotaged . | . . . . . . . . . . . . . . . . . . . . Overloaded Fab Kills . | . . . . . . . . . . . . . . . . . . . . Hacking | -11 -10 -10 -10 -9 -8 -8 -8 -8 -6 -6 -6 -6 -6 -5 -4 -3 -3 -2 -1 --------- Run | Yrd Mat Min Exi Min Mat Sto Rec Scr Fac Ext Cet Arc Hub Fac Fac Res Tes Res Acc Machines Accessed 77 | . 3 1 1 . 7 12 5 4 8 12 3 . 2 4 . 3 4 7 1 Terminals 53 | . 3 1 . . 4 11 2 . 4 12 3 . 2 2 . . 3 6 . Fabricators 3 | . . . . . . . . . 1 . . . . . . 1 1 . . Repair Stations 7 | . . . . . 1 . . . 2 . . . . 1 . 2 . 1 . Recycling Units 5 | . . . . . 1 1 3 . . . . . . . . . . . . Scanalyzers 1 | . . . . . . . . . . . . . . 1 . . . . . Garrison Access 3 | . . . . . 1 . . . 1 . . . . . . . . . 1 Total Hacks 170 | . 7 2 1 . 13 17 15 15 13 27 8 . 4 13 . 9 4 20 2 Successful 80 | . 2 1 1 . 7 10 7 15 7 9 2 . 3 9 . . 1 6 . Failed 90 | . 5 1 . . 6 7 8 . 6 18 6 . 1 4 . 9 3 14 2 Catastrophic 26 | . . . . . 2 . 1 . 2 5 1 . 1 1 . 4 3 5 1 Database Lockouts . | . . . . . . . . . . . . . . . . . . . . Manual 49 | . 7 . . . 7 9 6 . 6 . 1 . 2 4 . . 1 6 . Terminals 115 | . 7 2 . . 8 16 11 . 8 27 8 . 4 4 . . 3 17 . Fabricators 6 | . . . . . . . . . 1 . . . . . . 4 1 . . Repair Stations 15 | . . . . . 2 . . . 3 . . . . 2 . 5 . 3 . Recycling Units 7 | . . . . . 2 1 4 . . . . . . . . . . . . Scanalyzers 7 | . . . . . . . . . . . . . . 7 . . . . . Garrison Access 4 | . . . . . 1 . . . 1 . . . . . . . . . 2 Terminal Hacks 50 | . 1 1 1 . 2 8 3 15 2 9 2 . 2 1 . . . 3 . Record 17 | . . . 1 . . . 1 9 . 3 2 . . . . . . 1 . Robot Analysis 8 | . 1 . . . 1 1 . 4 1 . . . . . . . . . . Prototype ID Bank 6 | . . . . . 1 . 1 . . 2 . . 1 . . . . 1 . Open Door 7 | . . . . . . 4 . 1 . 2 . . . . . . . . . Level Access Points 1 | . . . . . . . . . . . . . . 1 . . . . . Branch Access Points 1 | . . . . . . . . . 1 . . . . . . . . . . Terminal Index 1 | . . . . . . . . . . . . . . . . . . 1 . Alert Level 1 | . . . . . . . . . . 1 . . . . . . . . . Dispatch Records 1 | . . 1 . . . . . . . . . . . . . . . . . Transport Status 2 | . . . . . . 2 . . . . . . . . . . . . . Hauler Manifests 2 | . . . . . . 1 1 . . . . . . . . . . . . Zone Layout 2 | . . . . . . . . . . 1 . . 1 . . . . . . Proto ID Catalog 1 | . . . . . . . . 1 . . . . . . . . . . . Fabricator Hacks 2 | . . . . . . . . . 1 . . . . . . . 1 . . Network Status 2 | . . . . . . . . . 1 . . . . . . . 1 . . Repair Station Hacks 8 | . . . . . 2 . . . 2 . . . . 2 . . . 2 . Scan Component 4 | . . . . . 1 . . . 1 . . . . 1 . . . 1 . Repair 4 | . . . . . 1 . . . 1 . . . . 1 . . . 1 . Recycling Unit Hacks 5 | . . . . . 1 1 3 . . . . . . . . . . . . Retrieve Components 5 | . . . . . 1 1 3 . . . . . . . . . . . . Scanalyzer 6 | . . . . . . . . . . . . . . 6 . . . . . Retrieve Study 6 | . . . . . . . . . . . . . . 6 . . . . . Garrison Access Hacks 2 | . . . . . 1 . . . 1 . . . . . . . . . . Seal Access 2 | . . . . . 1 . . . 1 . . . . . . . . . . Unauthorized Hacks 7 | . 1 . . . 1 1 1 . 1 . . . 1 . . . . 1 . Terminals 7 | . 1 . . . 1 1 1 . 1 . . . 1 . . . . 1 . Botnet 6 | . 1 . . . 1 1 1 . 1 . . . . . . . . 1 . Sabotage 1 | . . . . . . . . . . . . . 1 . . . . . . Fabricators . | . . . . . . . . . . . . . . . . . . . . Repair Stations . | . . . . . . . . . . . . . . . . . . . . Recycling Units . | . . . . . . . . . . . . . . . . . . . . Scanalyzers . | . . . . . . . . . . . . . . . . . . . . Garrison Access . | . . . . . . . . . . . . . . . . . . . . Data Cores Recovered 1 | . . . . . . 1 . . . . . . . . . . . . . Used . | . . . . . . . . . . . . . . . . . . . . Hacking Detections 54 | . 3 . . . 4 7 5 . 6 10 2 . 1 2 . 3 3 7 1 Full Trace Events 7 | . 2 . . . . . . . . 4 1 . . . . . . . . Feedback Events 1 | . . . . . . . . . . 1 . . . . . . . . . Corruption 1 | . . . . . . . . . . 1 . . . . . . . . . Feedback Blocked . | . . . . . . . . . . . . . . . . . . . . Robot Schematics Acquired . | . . . . . . . . . . . . . . . . . . . . Robots Built . | . . . . . . . . . . . . . . . . . . . . Authchips . | . . . . . . . . . . . . . . . . . . . . Time . | . . . . . . . . . . . . . . . . . . . . Total Robot Build Rating . | . . . . . . . . . . . . . . . . . . . . Part Schematics Acquired . | . . . . . . . . . . . . . . . . . . . . Parts Built . | . . . . . . . . . . . . . . . . . . . . Authchips . | . . . . . . . . . . . . . . . . . . . . Time . | . . . . . . . . . . . . . . . . . . . . Total Part Build Rating . | . . . . . . . . . . . . . . . . . . . . Part Studies Acquired 6 | . . . . . . . . . . . . . . 6 . . . . . Parts Repaired 4 | . . . . . 1 . . . 1 . . . . 1 . . . 1 . Time 212 | . . . . . 26 . . . 38 . . . . 99 . . . 49 . Parts Recycled . | . . . . . . . . . . . . . . . . . . . . Recycled Matter . | . . . . . . . . . . . . . . . . . . . . Retrieved Matter . | . . . . . . . . . . . . . . . . . . . . Retrieved Components 21 | . . . . . 9 1 11 . . . . . . . . . . . . Parts Scanalyzed . | . . . . . . . . . . . . . . . . . . . . Part Schematics Acquired . | . . . . . . . . . . . . . . . . . . . . Parts Damaged . | . . . . . . . . . . . . . . . . . . . . Bothacking | -11 -10 -10 -10 -9 -8 -8 -8 -8 -6 -6 -6 -6 -6 -5 -4 -3 -3 -2 -1 ------------ Run | Yrd Mat Min Exi Min Mat Sto Rec Scr Fac Ext Cet Arc Hub Fac Fac Res Tes Res Acc Used RIF Installer . | . . . . . . . . . . . . . . . . . . . . Robots Hacked . | . . . . . . . . . . . . . . . . . . . . Non-combat . | . . . . . . . . . . . . . . . . . . . . Combat . | . . . . . . . . . . . . . . . . . . . . Robot Hacks Applied . | . . . . . . . . . . . . . . . . . . . . Relay Couplers Released . | . . . . . . . . . . . . . . . . . . . . Fabnet Peak Effective % . | . . . . . . . . . . . . . . . . . . . . Robots Rewired 25 | . . . . . . . . . . 25 . . . . . . . . . Allies Hacked . | . . . . . . . . . . . . . . . . . . . . Hacks Repelled . | . . . . . . . . . . . . . . . . . . . . Allies | -11 -10 -10 -10 -9 -8 -8 -8 -8 -6 -6 -6 -6 -6 -5 -4 -3 -3 -2 -1 -------- Run | Yrd Mat Min Exi Min Mat Sto Rec Scr Fac Ext Cet Arc Hub Fac Fac Res Tes Res Acc Total Allies 46 | . . 5 . . . 10 . . . 26 5 . . . . . . . . Largest Group 10 | . . 4 2 2 . 10 10 10 . 10 6 6 5 . . . . . . Highest-Rated Group 639 | . . 50 24 24 . 173 173 173 . 290 639 633 480 . . . . . . Highest-Rated Ally 159 | . . 31 16 16 . 29 29 29 . 159 159 153 96 . . . . . . Total Orders 2 | . . . . . . . . 2 . . . . . . . . . . . STAY 2 | . . . . . . . . 2 . . . . . . . . . . . Ally Attacks 294 | . . 14 . 9 . 6 . . . 178 38 16 33 . . . . . . Total Damage 6930 | . . 124 . 96 . 80 . . . 3785 1305 568 972 . . . . . . Kills 56 | . . 2 . 1 . 1 . . . 33 8 4 7 . . . . . . Allies Corrupted 4 | . . . . . . . . . . . . . 4 . . . . . . Allies Melted 1 | . . . . . . . . . . 1 . . . . . . . . . Intel | -11 -10 -10 -10 -9 -8 -8 -8 -8 -6 -6 -6 -6 -6 -5 -4 -3 -3 -2 -1 ------- Run | Yrd Mat Min Exi Min Mat Sto Rec Scr Fac Ext Cet Arc Hub Fac Fac Res Tes Res Acc Active Infowar (turns) 20163 | 27 368 520 . . 1061 2576 793 4107 1451 2230 527 271 . 1546 161 1559 666 1769 531 Optics 6232 | . . . . . . . . . . . . . . 1546 161 1559 666 1769 531 Sensors 9042 | . . . . . 1061 2576 793 4107 505 . . . . . . . . . . Terrain 3974 | . . . . . . . . . 946 2230 527 271 . . . . . . . Seismic 915 | 27 368 520 . . . . . . . . . . . . . . . . . Jamming 2160 | . . . . . . . . . . . . . . . . 828 615 717 . Robot Analysis Total 8 | . 1 . . . 1 1 . 4 1 . . . . . . . . . . Derelict Logs Recovered 2 | . . 1 . 1 . . . . . . . . . . . . . . . Drone Launches . | . . . . . . . . . . . . . . . . . . . . Drone Recoveries . | . . . . . . . . . . . . . . . . . . . . Exploration | -11 -10 -10 -10 -9 -8 -8 -8 -8 -6 -6 -6 -6 -6 -5 -4 -3 -3 -2 -1 ------------- Run | Yrd Mat Min Exi Min Mat Sto Rec Scr Fac Ext Cet Arc Hub Fac Fac Res Tes Res Acc Turns Passed 24034 | 158 368 815 485 540 1571 2576 793 4114 1882 2237 527 734 851 1549 161 1559 666 1769 679 Spaces Moved 10314 | 83 172 451 304 204 520 908 309 1678 645 849 255 306 466 639 43 831 279 814 558 Core 302 | 7 . . . . . . . . . 1 . . . . . . . . 294 Treads 9482 | 76 172 451 304 204 520 908 309 1678 645 848 255 306 466 549 . 434 279 814 264 Legs 3 | . . . . . . . . . . . . . . . . 3 . . . Wheels 281 | . . . . . . . . . . . . . . 90 43 148 . . . Hover 246 | . . . . . . . . . . . . . . . . 246 . . . Flight . | . . . . . . . . . . . . . . . . . . . . Fastest Speed 50 | 50 160 160 160 160 236 236 243 243 250 164 160 160 160 160 290 102 175 155 50 Average Speed 197 | 150 160 160 160 257 239 237 243 243 250 193 160 160 160 186 290 164 178 166 103 Slowest Speed 1800 | 160 160 160 160 320 240 243 243 250 250 1800 164 162 160 320 290 610 180 237 247 Overloaded Moves . | . . . . . . . . . . . . . . . . . . . . Propulsion Burnouts . | . . . . . . . . . . . . . . . . . . . . Robots Hopped . | . . . . . . . . . . . . . . . . . . . . Potential Cave-ins 1 | . . . . . . . . . . . 1 . . . . . . . . Cave-ins Triggered . | . . . . . . . . . . . . . . . . . . . . Exploration Rate (%) 46 | 4 30 78 71 45 46 97 52 93 16 88 70 95 37 13 1 22 36 25 20 Regions Visited 19 Branch Regions 11 Pre-discovered Areas 2 | . . 1 . 1 . . . . . . . . . . . . . . . Known Exits Taken 3 | . . . . . 1 . . . 1 . . . . 1 . . . . . Unknown Exits Taken 16 | 1 1 1 1 1 . 1 1 1 . 1 1 1 1 . 1 1 1 1 . Scrap Searched 6 | . . 1 . 1 . . . 4 . . . . . . . . . . . Spaces Dug 41 | . . . . . . . . . 15 . . . 5 3 . . 1 8 9 Terrain Destroyed 850 | . . . . . 20 14 1 . 39 9 82 6 351 139 . 60 31 72 26 Melee 17 | . . . . . . . . . 14 . . . . 2 . . 1 . . Projectile 232 | . . . . . 2 14 1 . 5 9 2 6 37 41 . 3 15 71 26 AOE 600 | . . . . . 18 . . . 20 . 80 . 314 96 . 57 15 . . Terrain Rammed . | . . . . . . . . . . . . . . . . . . . . Walls Destroyed . | . . . . . . . . . . . . . . . . . . . . Machines Disabled . | . . . . . . . . . . . . . . . . . . . . Actions | -11 -10 -10 -10 -9 -8 -8 -8 -8 -6 -6 -6 -6 -6 -5 -4 -3 -3 -2 -1 --------- Run | Yrd Mat Min Exi Min Mat Sto Rec Scr Fac Ext Cet Arc Hub Fac Fac Res Tes Res Acc Total 12711 | 102 237 501 303 217 722 1224 346 1708 806 1308 331 513 514 833 72 963 354 1053 604 Wait 782 | . 29 17 . . 62 184 29 . 62 45 33 157 6 55 18 11 6 68 . Move 10296 | 82 171 450 303 203 519 907 308 1677 644 848 254 305 466 638 42 830 278 813 558 Hop . | . . . . . . . . . . . . . . . . . . . . Pick Up 183 | 5 8 4 . 6 32 10 1 7 11 17 7 4 2 11 3 22 9 21 3 Fast Attach 131 | 8 2 . . . 8 6 . 8 8 15 2 7 1 9 1 26 3 25 2 Attach 95 | . . 3 . 1 5 1 . 1 10 6 6 1 1 17 2 11 10 15 5 Detach 12 | 1 . . . . . . . . 1 . . . . 4 . 1 2 2 1 Swap 67 | . 2 . . 1 6 14 2 . 5 4 5 6 6 8 . 1 2 5 . Drop 180 | . 7 1 . 3 21 27 2 15 4 23 6 11 3 7 . 24 2 23 1 Fire 557 | 6 16 20 . 3 63 69 3 . 38 59 18 12 29 61 . 15 41 77 27 Melee 100 | . . . . . . . . . 23 11 . 9 . 23 6 22 1 . 5 Ram 2 | . . . . . . . . . . . . . . . . . . . 2 Kick . | . . . . . . . . . . . . . . . . . . . . Crush 26 | . 2 6 . . 6 6 1 . . . . 1 . . . . . 4 . Escape Stasis 2 | . . . . . . . . . . 2 . . . . . . . . . Rewire 278 | . . . . . . . . . . 278 . . . . . . . . . Trap . | . . . . . . . . . . . . . . . . . . . . Miscellaneous . | . . . . . . . . . . . . . . . . . . . . Route ------- -11/Scrapyard -10/Materials -10/Mines (discovered 4 exits: [*Mat x2] / *Exi / [*Sub]) -10/Exiles -9/Mines -8/Materials (discovered 2 exits: *Sto x2) -8/Storage (discovered 2 exits: [*Fac] / *Rec) -8/Recycling -8/Scraptown (discovered 2 exits: *Fac x2) -6/Factory (discovered 5 exits: *Fac / Low x2 / *Ext x2) -6/Extension (discovered 3 exits: *Fac x2 / *Cet) -6/Cetus (discovered 2 exits: *Fac / *Arc) -6/Archives (discovered 3 exits: *Fac / *Hub x2) -6/Hub_04(d) -5/Factory (discovered 4 exits: *Fac x4) -4/Factory -3/Research -3/Testing -2/Research -1/Access History --------- Turn | Location | Event 22 | -11/Scrapyard | Discovered new exit (range 16) 159 | -11/Scrapyard | Entered Materials 316 | -10/Materials | Build established: Mutant 470 | -10/Materials | Discovered new exit (range 16) 527 | -10/Materials | Entered Mines 554 | -10/Mines | Met a Derelict bent on vengeance 561 | -10/Mines | Discovered new exit (range 5) 913 | -10/Mines | Discovered new exit (range 5) 1085 | -10/Mines | Assisted by bots powering up and referring to "LRC-V3" 1121 | -10/Mines | Learned location of Storage (-8) 1123 | -10/Mines | Discovered new exit (range 5) 1276 | -10/Mines | Core integrity fell below 50% 1335 | -10/Mines | Deemed a non-threat by the Exiles lab entrance 1335 | -10/Mines | Discovered new exit (range 5) 1342 | -10/Mines | Entered Exiles 1342 | -10/Exiles | Found Exiles lab abandoned 1342 | -10/Exiles | Accompanied by 2 allies 1813 | -10/Exiles | Discovered new exit (range 11) 1827 | -10/Exiles | Entered Mines 1827 | -9/Mines | Accompanied by 2 allies 2300 | -9/Mines | Discovered new exit (range 9) 2367 | -9/Mines | Entered Materials 2367 | -8/Materials | Evolved 4 slots: Propulsion x2, Utility x2 2368 | -8/Materials | Identified exit to Storage 2998 | -8/Materials | Build established: Scavenger-Mutant 3570 | -8/Materials | Discovered exit to Storage (range 15) 3684 | -8/Materials | Repaired Lgt. Treads 3938 | -8/Materials | Entered Storage 4489 | -8/Storage | Used back door to open Recycling access 4489 | -8/Storage | Discovered new exit (range 5) 4961 | -8/Storage | Discovered new exit (range 7) 4966 | -8/Storage | Build established: Mutant 5843 | -8/Storage | Assisted by bots powering up and referring to "LRC-V3" 6145 | -8/Storage | Build established: Commander-Mutant 6514 | -8/Storage | Entered Recycling 6514 | -8/Recycling | Accompanied by 10 allies 7207 | -8/Recycling | Scanned before Scraplab entrance 7244 | -8/Recycling | Entered Scraplab 7263 | -8/Recycling | Discovered new exit (range 4) 7307 | -8/Recycling | Entered Scraptown 7307 | -8/Scraptown | Accompanied by 10 allies 7307 | -8/Scraptown | System corruption cleaned by C-Scrubber 8287 | -8/Scraptown | Discovered new exit (range 3) 8404 | -8/Scraptown | Visited SPCMW 8443 | -8/Scraptown | Visited Red Mages 8547 | -8/Scraptown | Visited Assassins FH 8579 | -8/Scraptown | Visited Cave Peace 8756 | -8/Scraptown | Visited Comm Corps 9408 | -8/Scraptown | Visited Awakened 9474 | -8/Scraptown | Visited The Evicted 9581 | -8/Scraptown | Visited UFD Registry 9581 | -8/Scraptown | Registered with UFD as "Matrixripper" 9685 | -8/Scraptown | Visited Cartography Club 9741 | -8/Scraptown | Found Surveybot 17 Chip 9888 | -8/Scraptown | Visited Research Penetration Think Tank 9964 | -8/Scraptown | Visited Scrap Suit Storage 10202 | -8/Scraptown | Discovered new exit (range 5) 10282 | -8/Scraptown | Visited Sword Containment 10309 | -8/Scraptown | Found Prototype Slashing Weapon 10309 | -8/Scraptown | Identified Companion Sword 10363 | -8/Scraptown | Visited Derelict Rescue Squad 10456 | -8/Scraptown | Visited Analyses Database 10631 | -8/Scraptown | Visited Science Testing Area 10669 | -8/Scraptown | Visited Chapter 10 10730 | -8/Scraptown | Visited Science Guys 11421 | -8/Scraptown | Entered Factory 11421 | -6/Factory | Evolved 4 slots: Propulsion x1, Utility x2, Weapon x1 11727 | -6/Factory | Build established: Mutant 11750 | -6/Factory | Identified exit to Lower Caves 11750 | -6/Factory | Identified exit to Extension 12134 | -6/Factory | Repaired Hrd. Medium Armor Plating 12810 | -6/Factory | Discovered new exit (range 15) 12867 | -6/Factory | Lost 3 parts (1n2u) 13303 | -6/Factory | Entered Extension 13922 | -6/Extension | Build established: Commander-Mutant 14069 | -6/Extension | Lost 9 allies 14599 | -6/Extension | Build established: Commander-Tank 14685 | -6/Extension | Spotted B-75 Beast 14703 | -6/Extension | Disrupted transfer network 14711 | -6/Extension | Allies destroyed B-75 Beast 14741 | -6/Extension | Lost 4 parts (3n1u) 14741 | -6/Extension | Lost 4 allies 14790 | -6/Extension | Discovered new exit (range 3) 15208 | -6/Extension | Lost 5 allies 15365 | -6/Extension | Rescued A7 15475 | -6/Extension | Build established: Gunner 15494 | -6/Extension | Discovered new exit (range 10) 15496 | -6/Extension | Discovered new exit (range 6) 15540 | -6/Extension | Entered Cetus 15540 | -6/Cetus | Accompanied by 1 ally (A7) 15545 | -6/Cetus | Acquired a Cetus Manufacturing Module code from A7 15563 | -6/Cetus | Spotted Cetus Guard 15563 | -6/Cetus | Spotted Cetus Guard 15565 | -6/Cetus | Spotted Cetus Guard 15569 | -6/Cetus | Allies destroyed Cetus Guard 15579 | -6/Cetus | Allies destroyed Cetus Guard 15582 | -6/Cetus | Destroyed Cetus Guard 15585 | -6/Cetus | Spotted Cetus Guard 15588 | -6/Cetus | Allies destroyed Cetus Guard 15609 | -6/Cetus | Lost 3 parts (2n1w) 15613 | -6/Cetus | System corruption reached 10% 15742 | -6/Cetus | Started Cetus Manufacturing Module 15767 | -6/Cetus | Manufactured an Enhanced Grunt 15792 | -6/Cetus | Manufactured an Enhanced Grunt 15817 | -6/Cetus | Manufactured an Enhanced Grunt 15842 | -6/Cetus | Manufactured an Enhanced Grunt 15867 | -6/Cetus | Manufactured an Enhanced Grunt 15903 | -6/Cetus | Build established: Scavenger-Tank 15905 | -6/Cetus | Discovered new exit (range 16) 15936 | -6/Cetus | Spotted Cetus Guard 15936 | -6/Cetus | Spotted Cetus Guard 15941 | -6/Cetus | Spotted Cetus Guard 15943 | -6/Cetus | Destroyed Cetus Guard 15944 | -6/Cetus | Spotted Cetus Guard 15951 | -6/Cetus | Allies destroyed Cetus Guard 15954 | -6/Cetus | Allies destroyed Cetus Guard 15962 | -6/Cetus | Allies destroyed Cetus Guard 15968 | -6/Cetus | Discovered new exit (range 15) 15979 | -6/Cetus | Met Revision 17 16067 | -6/Cetus | Entered Archives 16067 | -6/Archives | Accompanied by 6 allies (A7) 16111 | -6/Archives | System corruption reached 30% 16134 | -6/Archives | Discovered new exit (range 16) 16158 | -6/Archives | Discovered new exit (range 16) 16179 | -6/Archives | Unable to access archive contents 16189 | -6/Archives | Discovered new exit (range 14) 16801 | -6/Archives | Entered Hub_04(d) 16801 | -6/Hub_04(d) | Accompanied by 5 allies 16973 | -6/Hub_04(d) | Network Hub disabled 17196 | -6/Hub_04(d) | Spotted Lightning 17196 | -6/Hub_04(d) | Spotted Lightning 17196 | -6/Hub_04(d) | Spotted Lightning 17238 | -6/Hub_04(d) | Network Hub disabled 17243 | -6/Hub_04(d) | Lost 5 allies 17252 | -6/Hub_04(d) | Destroyed Lightning 17365 | -6/Hub_04(d) | Destroyed Lightning 17398 | -6/Hub_04(d) | Spotted B-75 Beast 17631 | -6/Hub_04(d) | Discovered new exit (range 14) 17652 | -6/Hub_04(d) | Entered Factory 17652 | -5/Factory | Evolved 2 slots: Propulsion x1, Utility x1 17795 | -5/Factory | Repaired Adv. KE Penetrator? 18474 | -5/Factory | Identified exit to Factory 18477 | -5/Factory | Cargo convoy interrupted 18514 | -5/Factory | Destroyed 9 combat bots 18537 | -5/Factory | Lost 6 parts (1p2u3w) 18549 | -5/Factory | System corruption reached 10% 18580 | -5/Factory | Lost 3 parts (2n1u) 18691 | -5/Factory | Lost 4 parts (2n1u1w) 18707 | -5/Factory | Found PL-3XN's Ring of Power 18731 | -5/Factory | Found Prototype Protection 18731 | -5/Factory | Identified Centrium Heavy Armor Plating 18947 | -5/Factory | Build established: Scavenger-Mutant 19201 | -5/Factory | Entered another Factory area 19201 | -4/Factory | Evolved 2 slots: Power x1, Utility x1 19335 | -4/Factory | Discovered new exit (range 7) 19362 | -4/Factory | Entered Research 19362 | -3/Research | Evolved 2 slots: Utility x1, Weapon x1 19562 | -3/Research | Revision forces began assault on 0b10 19612 | -3/Research | Met up with Revision 17++ 19691 | -3/Research | Lost 4 parts (1n2u1w) 19772 | -3/Research | Allied Derelicts emerged from ambush trap array 19975 | -3/Research | Build established: Scavenger-Tank 20062 | -3/Research | Research terminal network offline 20444 | -3/Research | System corruption reached 10% 20680 | -3/Research | Spotted Executioner 20680 | -3/Research | Spotted Striker 20691 | -3/Research | Spotted Striker 20714 | -3/Research | Destroyed Striker 20758 | -3/Research | Lost 6 allies 20767 | -3/Research | Destroyed 10 combat bots 20769 | -3/Research | Lost 6 parts (1p2u3w) 20912 | -3/Research | Discovered new exit (range 5) 20921 | -3/Research | Entered Testing 21039 | -3/Testing | Build established: Tank 21455 | -3/Testing | Build established: Scavenger-Gunner 21526 | -3/Testing | Discovered new exit (range 16) 21587 | -3/Testing | Entered Research 21587 | -2/Research | Evolved 2 slots: Power x1, Propulsion x1 21772 | -2/Research | Build established: Scavenger-Tank 22054 | -2/Research | Garrison activated, responded to threat 22133 | -2/Research | System corruption reached 10% 22137 | -2/Research | Lost 3 parts (2n1w) 22464 | -2/Research | Repaired Cld. Phase Cannon 23025 | -2/Research | Spotted B-90 Cyclops 23281 | -2/Research | Lost 3 parts (1n2u) 23283 | -2/Research | Destroyed 8 combat bots 23348 | -2/Research | Discovered new exit (range 4) 23356 | -2/Research | Entered Access 23356 | -1/Access | Evolved 2 slots: Utility x1, Weapon x1 23842 | -1/Access | System corruption reached 10% 23887 | -1/Access | Released all parts (16) 23907 | -1/Access | Core integrity fell below 50% 23918 | -1/Access | Lost 19 parts (2p5n7u5w) 24008 | -1/Access | Core integrity fell below 20% 24035 | -1/Access | Destroyed by H-88 Terminator with KE Penetrator Last Messages --------------- detected, Programmers report to Access Zone 5Y. 23993_ Penetrated by Slug. 23993_ Slug penetrates Wall. 23998_ System corrupted: Matter fused (-6). 23998_ Slug penetrates Wall. 24007_ Penetrated by Slug. 24009_ Slug penetrates Wall. 24009_ Penetrated by Slug. 24010_ Slug penetrates Wall. 24018_ System corrupted: Energy discharge (-29). 24030_ C-30 ARC bursts open, deploying its payload. 24030_ H-88 Terminator unfolds itself. 24030_ Penetrated by Slug. 24030_ Slug penetrates Wall. 24033_ NLW%2|JYUKV|,2 24033_ Slug penetrates Wall. 24033_ Penetrated by Slug. [Achievement: This Is Interesting...] Map ----- +----------------------------------------------------+ | ??????????????????? ?# ########## | | ??????????????????# ?# | | ??????????????????# ??# | | ??????????????????# ??# | | ??????????????????##########???# | | ???????????????????????????????# | | ???????????????????????????????# | | ???????????????????????????????# | | ???????????????????????????################### | | ??????????????????????????? #?????????????# | | ??????????????????????????? #?????????????# | | ??????????????????????????? #?????????????# | | ??????????????????????????? #?????????????# | | ??????????????????# ??????? #?????????????# | | ??????????????????# """" #??????######## | | ??????????????????# """"" #??????# | | ??????????????????# """"" #??????# | | ???????????????????? """" #??????# | | ?????????????????????? " #??????# | | ????#### ####??????????? #??????# | | ????# !! ??????????? ???????# | | ????# !! ###########+########## | | ?????"" = + w p #### | | ?????"" # #??? | | ?????"" #h #??? | | ?????G %/h @ #??? | | ?????"" * [ # #??? | | ??????" !# #??? | | ??????" " ?# A #??? | | ???????? """ ?# #################### #??? | | ??????? """ ??# #??????????????????# #??? | | ???????? ???" ???# ???????????????????# #??? | | ????????????##???# ???????????????????# #??? | | ?????????????????# ???????????????????# #??? | | ?????????????????# ???????????????????# #??? | | ?????????????????? ???????????????????# #??" | | ?????????????????? ???????????????????# #?"" | | ?????????????????? ???????????????????# #""" | | ??????????????????????????????????????# #""" | | ??????????????????????????????????????+ + | | ??????????????????????????????????????# # | | ??????????????????????????????????????# ^ #? | | ??????????????????????????????????????# #??# | | ??????????????????????????????????????# #??# | | ??????????????????????????????????????# #??# | | ??????????????????????????????????????# #??# | | ??????????????????????????????????????# #??# | | ??????????????????????????????????????# #??# | | ??????????????????????????????????????# #??# | | ??????????????????????????????????????# #??# | +----------------------------------------------------+ Best States ------------- Heat Dissipation 118 Energy Generation 57 Energy Capacity 610 Matter Stores 450 Matter Capacity 550 Sight Range 20 Robot Scan Range 15 Terrain Scan Range 20 Terrain Scan Density 10 Jamming Range 16 Armor Coverage 1200 Resistance: KI 25 Resistance: TH 30 Resistance: EM 15 Weapon Shielding 66 Phase Shifting 15 Evasion (%) 55 Targeting Accuracy 8 Melee Accuracy 8 Target Analysis 12 Recoil Reduction 7 Energy Filtering 30 Offensive Hacking 14 Item Schematics ----------------- None Robot Schematics ------------------ None Fabricated ------------ Nothing Repaired ---------- Lgt. Treads | 13% | -8/Materials Hrd. Medium Armor Plating | 31% | -6/Factory Adv. KE Penetrator | 49% | -5/Factory Cld. Phase Cannon | 16% | -2/Research Studied --------- Magnetic Acceleration Cannon | -5/Factory | Hacked Enh. Gauss Cannon | -5/Factory | Hacked Med. Treads | -5/Factory | Hacked Imp. Treads | -5/Factory | Hacked Imp. Medium Treads | -5/Factory | Hacked KE Penetrator | -5/Factory | Hacked Alien Tech Used ----------------- None Achievements -------------- Brute Force Collateral Damage Explorer This Is Interesting... Challenges ------------ None Game ------ Seed SlugHeavyClaymores Manual? 0 Play Time 02:48:32 Cumulative 41.0 hours Start 2026.02.01 @ 12:58:48 End 2026.02.01 @ 15:59:34 Sessions 1 Manual Loads 0 Difficulty Rogue Special Mode None Game No. 48 Rogue 48 Adventurer 0 Explorer 0 Win Type - Total 1 Types 1/0/0/0/0/0/0/0/0/0 Lore% 25 Gallery% 33 Achievement% 30 Wizard Run 0 Options --------- Layout 1 ASCII 0 Keyboard 0 Movement Arrows Keybinds 0 Fullscreen 2 Font 32/SmallcapsGlow Map View 50x35 Zoom Use 0% Tactical HUD 1 Map Filters NONE Filters NONE Steam 1 RUN: a5c2fa28-44cf-4d1a-adee-d06b8278958d